Workbook

Sheet 읍면동별 세대 및 인구
A1: 여수시 읍면동별 세대 및 인구
A2: 작성기준 : 2017.12.31. 현재 | J2: (단위 : 세대, 명)
A3: 구 분 | B3: 세대수1) | C3: 합 계 | F3: 한국인 | I3: 외국인
C4: 계 | D4: 남 | E4: 여 | F4: 계 | G4: 남 | H4: 여 | I4: 계 | J4: 남 | K4: 여
A5: 2017년 말 | B5: =SUM(B6:B32) -> 119,684 | C5: =D5+E5 -> 290,528 | D5: =SUM(D6:D32) -> 148,022 | E5: =SUM(E6:E32) -> 142,506 | F5: =G5+H5 -> 286,382 | G5: =SUM(G6:G32) -> 145,122 | H5: =SUM(H6:H32) -> 141,260 | I5: =J5+K5 -> 4,146 | J5: =SUM(J6:J32) -> 2,900 | K5: =SUM(K6:K32) -> 1,246
A6: 돌산읍 | B6: 6,415 | C6: =SUM(D6:E6) -> 14,501 | D6: =SUM(G6+J6) -> 7,575 | E6: =SUM(H6+K6) -> 6,926 | F6: =SUM(G6:H6) -> 13,844 | G6: 7,000 | H6: 6,844 | I6: =SUM(J6:K6) -> 657 | J6: 575 | K6: 82
A7: 소라면 | B7: 8,455 | C7: =SUM(D7:E7) -> 21,160 | D7: =SUM(G7+J7) -> 10,649 | E7: =SUM(H7+K7) -> 10,511 | F7: =SUM(G7:H7) -> 21,023 | G7: 10,604 | H7: 10,419 | I7: =SUM(J7:K7) -> 137 | J7: 45 | K7: 92
A8: 율촌면 | B8: 3,272 | C8: 6,914 | D8: 3,575 | E8: 3,339 | F8: 6,738 | G8: 3,443 | H8: 3,295 | I8: 176 | J8: 132 | K8: 44
A9: 화양면 | B9: 3,450 | C9: 6,992 | D9: 3,672 | E9: 3,320 | F9: 6,774 | G9: 3,502 | H9: 3,272 | I9: 218 | J9: 170 | K9: 48
A10: 남면 | B10: 1,722 | C10: 3,215 | D10: 1,670 | E10: 1,545 | F10: =SUM(G10:H10) -> 3,113 | G10: 1,578 | H10: 1,535 | I10: 102 | J10: 92 | K10: 10
A11: 화정면 | B11: 1,285 | C11: 2,360 | D11: 1,177 | E11: 1,183 | F11: 2,306 | G11: 1,129 | H11: 1,177 | I11: 54 | J11: 48 | K11: 6
A12: 삼산면 | B12: 1,182 | C12: 2,232 | D12: 1,241 | E12: 991 | F12: 2,155 | G12: 1,173 | H12: 982 | I12: 77 | J12: 68 | K12: 9
A13: 동문동 | B13: 2,330 | C13: 4,515 | D13: 2,313 | E13: 2,202 | F13: 4,443 | G13: 2,268 | H13: 2,175 | I13: 72 | J13: 45 | K13: 27
A14: 한려동 | B14: 1,653 | C14: 3,234 | D14: 1,635 | E14: 1,599 | F14: 3,209 | G14: 1,624 | H14: 1,585 | I14: 25 | J14: 11 | K14: 14
A15: 중앙동 | B15: 2,441 | C15: 5,128 | D15: 2,584 | E15: 2,544 | F15: 5,044 | G15: 2,526 | H15: 2,518 | I15: 84 | J15: 58 | K15: 26
A16: 충무동 | B16: 2,297 | C16: 4,515 | D16: 2,339 | E16: 2,176 | F16: 4,469 | G16: 2,310 | H16: 2,159 | I16: 46 | J16: 29 | K16: 17
A17: 광림동 | B17: 3,253 | C17: 6,783 | D17: 3,501 | E17: 3,282 | F17: 6,741 | G17: 3,488 | H17: 3,253 | I17: 42 | J17: 13 | K17: 29
A18: 서강동 | B18: 1,916 | C18: 4,101 | D18: 2,050 | E18: 2,051 | F18: 4,068 | G18: 2,043 | H18: 2,025 | I18: 33 | J18: 7 | K18: 26
A19: 대교동 | B19: 3,143 | C19: 6,288 | D19: 3,316 | E19: 2,972 | F19: 6,001 | G19: 3,074 | H19: 2,927 | I19: 287 | J19: 242 | K19: 45
A20: 국동 | B20: 5,414 | C20: 13,094 | D20: 6,756 | E20: 6,338 | F20: 12,726 | G20: 6,436 | H20: 6,290 | I20: 368 | J20: 320 | K20: 48
A21: 월호동 | B21: 2,896 | C21: 7,857 | D21: 4,034 | E21: 3,823 | F21: 7,584 | G21: 3,779 | H21: 3,805 | I21: 273 | J21: 255 | K21: 18
A22: 여서동 | B22: 7,897 | C22: 20,936 | D22: 10,355 | E22: 10,581 | F22: 20,783 | G22: 10,280 | H22: 10,503 | I22: 153 | J22: 75 | K22: 78
A23: 문수동 | B23: 8,617 | C23: 21,274 | D23: 10,665 | E23: 10,609 | F23: 21,043 | G23: 10,522 | H23: 10,521 | I23: 231 | J23: 143 | K23: 88
A24: 미평동 | B24: 5,522 | C24: 12,715 | D24: 6,598 | E24: 6,117 | F24: 12,585 | G24: 6,535 | H24: 6,050 | I24: 130 | J24: 63 | K24: 67
A25: 둔덕동 | B25: 4,022 | C25: 11,094 | D25: 5,564 | E25: 5,530 | F25: 11,015 | G25: 5,531 | H25: 5,484 | I25: 79 | J25: 33 | K25: 46
A26: 만덕동 | B26: 3,777 | C26: 9,677 | D26: 4,844 | E26: 4,833 | F26: 9,513 | G26: 4,745 | H26: 4,768 | I26: 164 | J26: 99 | K26: 65
A27: 쌍봉동 | B27: 13,144 | C27: 35,163 | D27: 17,853 | E27: 17,310 | F27: 34,944 | G27: 17,749 | H27: 17,195 | I27: 219 | J27: 104 | K27: 115
A28: 시전동 | B28: 11,224 | C28: 31,405 | D28: 15,738 | E28: 15,667 | F28: 31,209 | G28: 15,646 | H28: 15,563 | I28: 196 | J28: 92 | K28: 104
A29: 여천동 | B29: 9,523 | C29: 22,754 | D29: 11,760 | E29: 10,994 | F29: 22,601 | G29: 11,704 | H29: 10,897 | I29: 153 | J29: 56 | K29: 97
A30: 주삼동 | B30: 2,962 | C30: 8,505 | D30: 4,342 | E30: 4,163 | F30: 8,459 | G30: 4,321 | H30: 4,138 | I30: 46 | J30: 21 | K30: 25
A31: 삼일동 | B31: 1,289 | C31: 2,855 | D31: 1,566 | E31: 1,289 | F31: 2,738 | G31: 1,462 | H31: 1,276 | I31: 117 | J31: 104 | K31: 13
A32: 묘도동 | B32: 583 | C32: 1,261 | D32: =SUM(G32+J32) -> 650 | E32: 611 | F32: 1,254 | G32: 650 | H32: 604 | I32: 7 | J32: 0 | K32: 7
A33: 주 : 1) 세대수에는 외국인 세대 제외

Sheet 65세이상 인구(총괄)
A1: 65세이상 인구 현황(총괄)
A2: 작성기준 : 2017.12.31. 현재 | D2: (단위 : 명)
A3: 구 분 | B3: 계 | C3: 남 | D3: 여 | E3: 노령화 지수
A4: 2010년말 | B4: 36,601 | C4: 14,376 | D4: 22,225 | E4: 76.5
A5: 2011년말 | B5: 37,830 | C5: 15,023 | D5: 22,807 | E5: 82.0
A6: 2012년말 | B6: 39,671 | C6: 15,929 | D6: 23,742 | E6: 89.4
A7: 2013년말 | B7: 41,369 | C7: 16,775 | D7: 24,594 | E7: 96.8
A8: 2014년말 | B8: 43,225 | C8: 17,752 | D8: 25,473 | E8: 105.4
A9: 2015년말 | B9: 44,997 | C9: 18,775 | D9: 26,222 | E9: 114.3
A10: 2016년말 | B10: 46,632 | C10: 19,720 | D10: 26,912 | E10: 121.8
A11: 2017년말 | B11: =SUM(C11:D11) -> 48,569 | C11: 20,703 | D11: 27,866 | E11: =B11/37176*100 -> 130.6
A12: 자료 : 민원지적과
A13: 주 : 노령화 지수 = (65세이상인구 / 0~14세 인구) * 100
